fUSD/lending_fUSD_20250812
["ID","MTS","AMOUNT","RATE_DAILY","PERIOD"]
[378684648,1754958682475,-400.0,0.00017086,2]
[378684649,1754958682485,-400.0,0.00017086,2]
[378684650,1754958682495,-400.0,0.00017086,2]
[378684651,1754958682506,-400.0,0.00017086,2]
[378684652,1754958682516,-512.47,0.00017086,2]
[378684653,1754958682526,-400.0,0.00017086,2]
[378684654,1754958682536,-450.97570512,0.00017086,2]
[378684655,1754958682547,-274.42884691,0.00017086,2]
[378684656,1754958682558,-400.0,0.00017086,2]
[378684657,1754958682569,-400.0,0.00017086,2]
[378684658,1754958682579,-400.0,0.00017086,2]
[378684659,1754958682590,-400.0,0.00017086,2]
[378684660,1754958682599,-400.0,0.00017086,2]
[378684661,1754958682610,-400.0,0.00017086,2]
[378684662,1754958682620,-400.0,0.00017086,2]
[378684663,1754958682629,-400.0,0.00017086,2]
[378684664,1754958682639,-400.0,0.00017086,2]
[378684665,1754958682648,-400.0,0.00017086,2]
[378684666,1754958682658,-400.0,0.00017086,2]
[378684667,1754958682668,-400.0,0.00017086,2]
[378684668,1754958682677,-446.28241475,0.00017086,2]
[378684669,1754958682687,-400.0,0.00017086,2]
[378684670,1754958682697,-400.0,0.00017086,2]
[378684671,1754958682707,-400.0,0.00017086,2]
[378684672,1754958682717,-400.0,0.00017086,2]
[378684673,1754958682726,-333.47258907,0.00017086,2]
[378684674,1754958682736,-400.0,0.00017086,2]
[378684675,1754958682745,-400.0,0.00017086,2]
[378684676,1754958682755,-400.0,0.00017086,2]
[378684677,1754958682764,-400.0,0.00017086,2]
[378684678,1754958682773,-400.0,0.00017086,2]
[378684679,1754958682783,-400.0,0.00017086,2]
[378684680,1754958682792,-400.0,0.00017086,2]
[378684681,1754958682804,-400.0,0.00017086,2]
[378684682,1754958682814,-400.0,0.00017086,2]
[378684683,1754958682823,-1067.035245,0.00017086,2]
[378684684,1754958682833,-1067.035245,0.00017086,2]
[378684685,1754958682843,-162.46573316,0.00017086,2]
[378684686,1754958682853,-400.0,0.00017086,2]
[378684687,1754958682862,-475.80822694,0.00017086,2]
[378684688,1754958682871,-400.0,0.00017086,2]
[378684689,1754958682881,-431.76424343,0.00017086,2]
[378684690,1754958682892,-431.26119344,0.00017086,2]
[378684691,1754958682902,-518.67877922,0.00017086,2]
[378684692,1754958682911,-192.98882689,0.00017086,2]
[378684693,1754958682921,-400.0,0.00017086,2]
[378684694,1754958682931,-400.0,0.00017086,2]
[378684695,1754958682940,-400.0,0.00017086,2]
[378684696,1754958682950,-150.0,0.00017087,2]
[378684697,1754958683213,-493.29378009,0.0001709,2]
[378684698,1754958683224,-229.09562967,0.00017095,2]
[378684699,1754958683234,-150.0,0.00017097,2]
[378684700,1754958683243,-150.0,0.00017102,2]
[378684701,1754958683255,-150.0,0.00017102,2]
[378684702,1754958683267,-1410.6917347,0.00017106,2]
[378684703,1754958683276,-12095.4913158,0.00017106,2]
[378684704,1754958683285,-759.888854,0.00017109,2]
[378684705,1754958683294,-759.888854,0.00017109,2]
[378684706,1754958683304,-151.0,0.00017109,2]
[378684707,1754958683314,-642.099351,0.00017109,2]
[378684708,1754958683323,-642.099351,0.00017109,2]
[378684709,1754958683332,-151.0,0.00017109,2]
[378684710,1754958683341,-151.0,0.00017109,2]
[378684711,1754958683351,-43379.963159,0.00017109,2]
[378684712,1754958683360,-227.89466363,0.00017113,2]
[378684713,1754958683369,-150.0,0.00017119,2]
[378684714,1754958683378,-200.0,0.0001712,2]
[378684715,1754958683387,-150.0,0.0001712,2]
[378684716,1754958683397,-150.0,0.00017126,2]
[378684717,1754958683408,-150.0,0.00017137,2]
[378684718,1754958683417,-150.0,0.00017139,2]
[378684719,1754958683427,-150.0,0.00017143,2]
[378684720,1754958683436,-229.09562967,0.00017153,2]
[378684721,1754958683447,-150.0,0.00017159,2]
[378684722,1754958683456,-176.92961545,0.00017162,2]
[378684723,1754958683466,-1555.5,0.00017166,2]
[378684724,1754958683475,-150.0,0.00017167,2]
[378684725,1754958683485,-150.0,0.0001717,2]
[378684726,1754958683495,-4662.7329275,0.0001719,2]
[378684727,1754958683504,-151.0,0.0001719,2]
[378684728,1754958683513,-302.138667,0.0001719,2]
[378684729,1754958683523,-302.138667,0.0001719,2]
[378684730,1754958683532,-151.0,0.0001719,2]
[378684731,1754958683542,-158.522638,0.0001719,2]
[378684732,1754958683551,-158.522638,0.0001719,2]
[378684733,1754958683566,-517.851066,0.0001719,2]
[378684734,1754958683576,-517.851066,0.0001719,2]
[378684735,1754958683585,-150.0,0.00017192,2]
[378684736,1754958683594,-150.0,0.00017195,2]
[378684737,1754958683603,-1000.0,0.00017199,2]
[378684738,1754958683612,-1000.0,0.00017199,2]
[378684739,1754958683622,-380.0,0.000172,2]
[378684740,1754958683632,-776.0,0.000172,2]
[378684741,1754958683641,-240.0,0.000172,2]
[378684742,1754958683650,-150.0,0.00017205,2]
[378684743,1754958683660,-500.0,0.00017205,2]
[378684744,1754958683669,-229.09562967,0.0001721,2]
[378684745,1754958683679,-150.0,0.00017214,2]
[378684746,1754958683688,-150.0,0.00017219,2]
[378684747,1754958683700,-150.0,0.00017226,2]
[378684748,1754958683709,-150.0,0.00017231,2]
[378684749,1754958683719,-150.0,0.00017234,2]
[378684750,1754958683729,-994.0428418,0.00017235,2]
[378684751,1754958683738,-150.0,0.00017246,2]
[378684752,1754958683747,-1067.035245,0.00017247,2]
[378684753,1754958683758,-1067.035245,0.00017247,2]
[378684754,1754958683767,-4754.6952233,0.00017247,2]
[378684755,1754958683778,-151.0,0.00017247,2]
[378684756,1754958683787,-1353.75,0.00017253,2]
[378684757,1754958683797,-400.0,0.00017253,2]
[378684758,1754958683807,-400.0,0.00017253,2]
[378684759,1754958683818,-400.0,0.00017253,2]
[378684760,1754958683828,-1368.73,0.00017253,2]
[378684761,1754958683838,-835.27,0.00017253,2]
[378684762,1754958683848,-638.05,0.00017253,2]
[378684763,1754958683858,-1206.42,0.00017253,2]
[378684764,1754958683868,-8653.14,0.00017253,2]
[378684765,1754958683877,-179049.74682701,0.00017258,2]
[378684766,1754958683887,-13905.48248256,0.00017258,2]
[378684767,1754958683896,-151.935102,0.00017258,2]
[378684768,1754958683906,-302.138667,0.00017258,2]
[378684769,1754958683915,-302.138667,0.00017258,2]
[378684770,1754958683925,-151.0,0.00017258,2]
[378684771,1754958683935,-158.522638,0.00017258,2]
[378684772,1754958683944,-158.522638,0.00017258,2]
[378684773,1754958683955,-517.851066,0.00017258,2]
[378684774,1754958683964,-517.851066,0.00017258,2]
[378684775,1754958683974,-759.888854,0.00017258,2]
[378684776,1754958683984,-759.888854,0.00017258,2]
[378684777,1754958683993,-1555.5,0.00017258,2]
[378684778,1754958684003,-151.0,0.00017258,2]
[378684779,1754958684013,-642.099351,0.00017258,2]
[378684780,1754958684022,-642.099351,0.00017258,2]
[378684781,1754958684032,-1067.035245,0.00017258,2]
[378684782,1754958684041,-1067.035245,0.00017258,2]
[378684783,1754958684051,-151.0,0.00017258,2]
[378684784,1754958684060,-151.0,0.00017258,2]
[378684785,1754958684069,-151.0,0.00017258,2]
[378684786,1754958684079,-112713.69378694,0.00017259,2]
[378684787,1754958684088,-302.138667,0.00017259,2]
[378684788,1754958684098,-302.138667,0.00017259,2]
[378684789,1754958684107,-151.0,0.00017259,2]
[378684790,1754958684116,-158.522638,0.00017259,2]
[378684791,1754958684126,-158.522638,0.00017259,2]
[378684792,1754958684135,-517.851066,0.00017259,2]
[378684793,1754958684144,-517.851066,0.00017259,2]
[378684794,1754958684153,-759.888854,0.00017259,2]
[378684795,1754958684162,-759.888854,0.00017259,2]
[378684796,1754958684171,-151.0,0.00017259,2]
[378684797,1754958684181,-642.099351,0.00017259,2]
[378684798,1754958684190,-642.099351,0.00017259,2]
[378684799,1754958684201,-1067.035245,0.00017259,2]
[378684800,1754958684210,-1067.035249,0.00017259,2]
[378684801,1754958684218,-151.0,0.00017259,2]
[378684802,1754958684227,-224.521224,0.00017259,2]
[378684803,1754958684236,-151.0,0.00017259,2]
[378684804,1754958684245,-574.72,0.00017265,2]
[378684805,1754958684255,-978.66,0.00017265,2]
[378684806,1754958684264,-539.9,0.00017265,2]
[378684807,1754958684274,-400.0,0.00017265,2]
[378684808,1754958684283,-480.66,0.00017265,2]
[378684809,1754958684293,-446.06,0.00017265,2]
[378684810,1754958684302,-632.96,0.00017265,2]
[378684811,1754958684311,-833.05,0.00017265,2]
[378684812,1754958684320,-400.0,0.00017265,2]
[378684813,1754958684329,-594.7,0.00017266,2]
[378684814,1754958684339,-400.0,0.00017266,2]
[378684815,1754958684348,-400.0,0.00017266,2]
[378684816,1754958684357,-400.0,0.00017266,2]
[378684817,1754958684366,-400.0,0.00017266,2]
[378684818,1754958684375,-400.0,0.00017266,2]
[378684819,1754958684384,-400.0,0.00017266,2]
[378684820,1754958684393,-400.0,0.00017266,2]
[378684821,1754958684402,-400.0,0.00017266,2]
[378684822,1754958684412,-400.0,0.00017266,2]
[378684823,1754958684421,-400.0,0.00017266,2]
[378684824,1754958684430,-400.0,0.00017266,2]
[378684825,1754958684439,-400.0,0.00017266,2]
[378684826,1754958684449,-400.0,0.00017266,2]
[378684827,1754958684458,-400.0,0.00017266,2]
[378684828,1754958684468,-541.43,0.00017266,2]
[378684829,1754958684477,-400.0,0.00017266,2]
[378684830,1754958684486,-400.0,0.00017266,2]
[378684831,1754958684496,-400.0,0.00017266,2]
[378684832,1754958684505,-400.0,0.00017266,2]
[378684833,1754958684515,-586.31,0.00017266,2]
[378684834,1754958684524,-400.0,0.00017266,2]
[378684835,1754958684533,-400.0,0.00017266,2]
[378684836,1754958684543,-400.0,0.00017266,2]
[378684837,1754958684552,-400.0,0.00017266,2]
[378684838,1754958684562,-400.0,0.00017266,2]
[378684839,1754958684572,-445.65,0.00017266,2]
[378684840,1754958684581,-400.0,0.00017266,2]
[378684841,1754958684590,-400.0,0.00017266,2]
[378684842,1754958684600,-400.0,0.00017266,2]
[378684843,1754958684609,-555.3,0.00017266,2]
[378684844,1754958684619,-400.0,0.00017266,2]
[378684845,1754958684628,-455.46,0.00017266,2]
[378684846,1754958684637,-528.53,0.00017266,2]
[378684847,1754958684647,-808.45,0.00017266,2]
[378684848,1754958684656,-400.0,0.00017266,2]
[378684849,1754958684667,-400.0,0.00017266,2]
[378684850,1754958684676,-400.0,0.00017266,2]
[378684851,1754958684687,-600.96,0.00017266,2]
[378684852,1754958684699,-400.0,0.00017266,2]
[378684853,1754958684708,-400.0,0.00017266,2]
[378684854,1754958684717,-400.0,0.00017266,2]
[378684855,1754958684726,-400.0,0.00017266,2]
[378684856,1754958684735,-400.0,0.00017266,2]
[378684857,1754958684745,-400.0,0.00017266,2]
[378684858,1754958684755,-400.0,0.00017266,2]
[378684859,1754958684765,-482.19,0.00017266,2]
[378684860,1754958684775,-400.0,0.00017266,2]
[378684861,1754958684784,-349.959486,0.00017266,2]
[378684862,1754958684793,-548.353883,0.00017266,2]
[378684863,1754958684804,-400.0,0.00017266,2]
[378684864,1754958684814,-611.02,0.00017266,2]
[378684865,1754958684823,-400.0,0.00017266,2]
[378684866,1754958684832,-409.66,0.00017266,2]
[378684867,1754958684842,-400.0,0.00017266,2]
[378684868,1754958684852,-652.048561,0.00017266,2]
[378684869,1754958684862,-400.0,0.00017266,2]
[378684870,1754958684871,-400.0,0.00017266,2]
[378684871,1754958684881,-800.99,0.00017266,2]
[378684872,1754958684890,-2551.9,0.00017266,2]
[378684873,1754958684899,-400.0,0.00017266,2]
[378684874,1754958684909,-400.0,0.00017266,2]
[378684875,1754958684920,-400.0,0.00017266,2]
[378684876,1754958684931,-400.0,0.00017266,2]
[378684877,1754958684941,-820.43,0.00017266,2]
[378684878,1754958684951,-565.37,0.00017266,2]
[378684879,1754958684960,-400.0,0.00017266,2]
[378684880,1754958684969,-573.02,0.00017266,2]
[378684881,1754958684978,-400.0,0.00017266,2]
[378684882,1754958684987,-1278.03,0.00017266,2]
[378684883,1754958684997,-422.09,0.00017266,2]
[378684884,1754958685007,-683.8,0.00017266,2]
[378684885,1754958685019,-400.0,0.00017266,2]
[378684886,1754958685030,-1082.91,0.00017266,2]
[378684887,1754958685040,-400.0,0.00017266,2]
[378684888,1754958685050,-400.0,0.00017266,2]
[378684889,1754958685060,-400.0,0.00017266,2]
[378684890,1754958685070,-1009.96,0.00017266,2]
[378684891,1754958685080,-214.27498623,0.00017266,2]
[378684892,1754958685090,-400.0,0.00017266,2]
[378684893,1754958685100,-400.0,0.00017266,2]
[378684894,1754958685110,-487.32,0.00017266,2]
[378684895,1754958685121,-471.77,0.00017266,2]
[378684896,1754958685131,-405.23,0.00017266,2]
[378684897,1754958685140,-400.0,0.00017266,2]
[378684898,1754958685150,-400.0,0.00017266,2]
[378684899,1754958685159,-482.58,0.00017266,2]
[378684900,1754958685168,-1964.74,0.00017266,2]
[378684901,1754958685177,-400.0,0.00017266,2]
[378684902,1754958685186,-591.6,0.00017266,2]
[378684903,1754958685196,-400.0,0.00017266,2]
[378684904,1754958685206,-400.0,0.00017266,2]
[378684905,1754958685214,-400.0,0.00017266,2]
[378684906,1754958685223,-400.0,0.00017266,2]
[378684907,1754958685233,-400.0,0.00017266,2]
[378684908,1754958685242,-618.38,0.00017266,2]
[378684909,1754958685251,-448.94,0.00017266,2]
[378684910,1754958685261,-400.0,0.00017266,2]
[378684911,1754958685270,-400.0,0.00017266,2]
[378684912,1754958685279,-2118.04,0.00017266,2]
[378684913,1754958685288,-1807.34,0.00017266,2]
[378684914,1754958685297,-400.0,0.00017266,2]
[378684915,1754958685306,-400.0,0.00017266,2]
[378684916,1754958685315,-400.0,0.00017266,2]
[378684917,1754958685325,-927.74,0.00017266,2]
[378684918,1754958685334,-936.33,0.00017266,2]
[378684919,1754958685343,-977.28,0.00017266,2]
[378684920,1754958685353,-609.57,0.00017266,2]
[378684921,1754958685362,-400.0,0.00017266,2]
[378684922,1754958685371,-1290.89,0.00017266,2]
[378684923,1754958685380,-400.0,0.00017266,2]
[378684924,1754958685390,-400.0,0.00017266,2]
[378684925,1754958685399,-417.25,0.00017266,2]
[378684926,1754958685409,-498.28,0.00017266,2]
[378684927,1754958685418,-400.0,0.00017266,2]
[378684928,1754958685428,-510.01,0.00017266,2]
[378684929,1754958685437,-400.0,0.00017266,2]
[378684930,1754958685447,-400.0,0.00017266,2]
[378684931,1754958685457,-400.0,0.00017266,2]
[378684932,1754958685466,-400.0,0.00017266,2]
[378684933,1754958685476,-400.0,0.00017266,2]
[378684934,1754958685553,-400.0,0.00017267,2]
[378684935,1754958685563,-400.0,0.00017267,2]
[378684936,1754958685572,-543.52,0.00017267,2]
[378684937,1754958685583,-400.0,0.00017267,2]
[378684938,1754958685595,-3558.75,0.00017267,2]
[378684939,1754958685606,-302.138667,0.00017267,2]
[378684940,1754958685617,-415.04,0.00017267,2]
[378684941,1754958685626,-302.138667,0.00017267,2]
[378684942,1754958685635,-400.0,0.00017267,2]
[378684943,1754958685644,-173.728884,0.00017267,2]
[378684944,1754958685654,-541.87,0.00017267,2]
[378684945,1754958685664,-686.48,0.00017267,2]
[378684946,1754958685673,-400.0,0.00017267,2]
[378684947,1754958685682,-843.54,0.00017267,2]
[378684948,1754958685692,-501.49,0.00017267,2]
[378684949,1754958685703,-400.0,0.00017267,2]
[378684950,1754958685713,-400.0,0.00017267,2]
[378684951,1754958685722,-411.31,0.00017267,2]
[378684952,1754958685731,-416.82,0.00017267,2]
[378684953,1754958685741,-400.0,0.00017267,2]
[378684954,1754958685750,-400.0,0.00017267,2]
[378684955,1754958685759,-400.0,0.00017267,2]
[378684956,1754958685770,-674.0,0.00017267,2]
[378684957,1754958685779,-400.0,0.00017267,2]
[378684958,1754958685788,-412.88,0.00017267,2]
[378684959,1754958685797,-400.0,0.00017267,2]
[378684960,1754958685807,-400.0,0.00017267,2]
[378684961,1754958685818,-400.0,0.00017267,2]
[378684962,1754958685827,-400.0,0.00017267,2]
[378684963,1754958685836,-941.84,0.00017267,2]
[378684964,1754958685846,-400.0,0.00017267,2]
[378684965,1754958685855,-435.86,0.00017267,2]
[378684966,1754958685864,-415.91,0.00017267,2]
[378684967,1754958685873,-1018.78,0.00017267,2]
[378684968,1754958685882,-400.0,0.00017267,2]
[378684969,1754958685895,-301.40095552,0.00017267,2]
[378684970,1754958685904,-400.0,0.00017267,2]
[378684971,1754958685915,-400.0,0.00017267,2]
[378684972,1754958685924,-400.0,0.00017267,2]
[378684973,1754958685933,-400.0,0.00017267,2]
[378684974,1754958685942,-400.0,0.00017267,2]
[378684975,1754958685952,-400.0,0.00017267,2]
[378684976,1754958685961,-716.34,0.00017267,2]
[378684977,1754958685970,-400.0,0.00017267,2]
[378684978,1754958685979,-158.522638,0.00017267,2]
[378684979,1754958685988,-806.63,0.00017267,2]
[378684980,1754958685998,-400.0,0.00017267,2]
[378684981,1754958686008,-158.522642,0.00017267,2]
[378684982,1754958686017,-400.0,0.00017267,2]
[378684983,1754958686026,-400.0,0.00017267,2]
[378684984,1754958686035,-400.0,0.00017267,2]
[378684985,1754958686044,-487.36,0.00017267,2]
[378684986,1754958686054,-403.05,0.00017267,2]
[378684987,1754958686063,-310.2836821,0.00017267,2]
[378684988,1754958686072,-400.0,0.00017267,2]
[378684989,1754958686080,-400.0,0.00017267,2]
[378684990,1754958686089,-400.0,0.00017267,2]
[378684991,1754958686098,-400.0,0.00017267,2]
[378684992,1754958686108,-279.80482285,0.00017267,2]
[378684993,1754958686118,-400.0,0.00017267,2]
[378684994,1754958686127,-400.0,0.00017267,2]
[378684995,1754958686136,-406.99,0.00017267,2]
[378684996,1754958686146,-924.79,0.00017267,2]
[378684997,1754958686155,-896.54,0.00017267,2]
[378684998,1754958686164,-400.0,0.00017267,2]
[378684999,1754958686173,-400.0,0.00017267,2]
[378685000,1754958686183,-400.0,0.00017267,2]
[378685001,1754958686193,-241.53186425,0.00017267,2]
[378685002,1754958686203,-400.0,0.00017267,2]
[378685003,1754958686212,-400.0,0.00017267,2]
[378685004,1754958686222,-989.5,0.00017267,2]
[378685005,1754958686232,-400.0,0.00017267,2]
[378685006,1754958686243,-400.0,0.00017267,2]
[378685007,1754958686252,-400.0,0.00017267,2]
[378685008,1754958686263,-429.77,0.00017267,2]
[378685009,1754958686271,-517.851066,0.00017267,2]
[378685010,1754958686282,-517.851066,0.00017267,2]
[378685011,1754958686292,-400.0,0.00017267,2]
[378685012,1754958686301,-446.06,0.00017267,2]
[378685013,1754958686310,-400.0,0.00017267,2]
[378685014,1754958686319,-840.46,0.00017267,2]
[378685015,1754958686329,-451.58,0.00017267,2]
[378685016,1754958686338,-5484.25,0.00017267,2]
[378685017,1754958686347,-400.0,0.00017267,2]
[378685018,1754958686356,-444.43,0.00017267,2]
[378685019,1754958686366,-400.0,0.00017267,2]
[378685020,1754958686377,-1135.69,0.00017267,2]
[378685021,1754958686387,-400.0,0.00017267,2]
[378685022,1754958686396,-473.46,0.00017267,2]
[378685023,1754958686406,-400.0,0.00017267,2]
[378685024,1754958686418,-759.888854,0.00017267,2]
[378685025,1754958686428,-504.02,0.00017267,2]
[378685026,1754958686438,-759.888846,0.00017267,2]
[378685027,1754958686447,-400.0,0.00017267,2]
[378685028,1754958686456,-562.93,0.00017267,2]
[378685029,1754958686466,-151.0,0.00017267,2]
[378685030,1754958686475,-425.72,0.00017267,2]
[378685031,1754958686484,-485.33,0.00017267,2]
[378685032,1754958686493,-642.099351,0.00017267,2]
[378685033,1754958686504,-716.05,0.00017267,2]
[378685034,1754958686516,-642.099357,0.00017267,2]
[378685035,1754958686526,-400.0,0.00017267,2]
[378685036,1754958686537,-409.81,0.00017267,2]
[378685037,1754958686547,-1367.17,0.00017267,2]
[378685038,1754958686556,-418.15,0.00017267,2]
[378685039,1754958686566,-400.0,0.00017267,2]
[378685040,1754958686575,-196.79131744,0.00017267,2]
[378685041,1754958686584,-487.67,0.00017267,2]
[378685042,1754958686595,-400.0,0.00017267,2]
[378685043,1754958686608,-463.33,0.00017267,2]
[378685044,1754958686617,-400.0,0.00017267,2]
[378685045,1754958686627,-400.0,0.00017267,2]
[378685046,1754958686635,-400.0,0.00017267,2]
[378685047,1754958686644,-1005.19,0.00017267,2]
[378685048,1754958686654,-400.0,0.00017267,2]
[378685049,1754958686663,-456.21,0.00017267,2]
[378685050,1754958686673,-400.0,0.00017267,2]
[378685051,1754958686682,-760.85,0.00017267,2]
[378685052,1754958686691,-400.0,0.00017267,2]
[378685053,1754958686703,-151.0,0.00017267,2]
[378685054,1754958686716,-461.28,0.00017267,2]
[378685055,1754958686730,-400.0,0.00017267,2]
[378685056,1754958686739,-400.0,0.00017267,2]
[378685057,1754958686748,-668.63,0.00017267,2]
[378685058,1754958686757,-415.53,0.00017267,2]
[378685059,1754958686766,-1056.23,0.00017267,2]
[378685060,1754958686775,-400.0,0.00017267,2]
[378685061,1754958686784,-400.0,0.00017267,2]
[378685062,1754958686794,-401.8,0.00017267,2]
[378685063,1754958686807,-400.0,0.00017267,2]
[378685064,1754958686816,-400.0,0.00017267,2]
[378685065,1754958686826,-1254.99,0.00017267,2]
[378685066,1754958686836,-400.0,0.00017267,2]
[378685067,1754958686846,-400.0,0.00017267,2]
[378685068,1754958686856,-400.0,0.00017267,2]
[378685069,1754958686865,-400.0,0.00017267,2]
[378685070,1754958686874,-448.0,0.00017267,2]
[378685071,1754958686884,-416.54,0.00017267,2]
[378685072,1754958686903,-434.77,0.00017267,2]
[378685073,1754958686914,-400.0,0.00017267,2]
[378685074,1754958686924,-400.0,0.00017267,2]
[378685075,1754958686942,-400.0,0.00017267,2]
[378685076,1754958686952,-504.51801399,0.00017267,2]
[378685077,1754958686961,-1026.25,0.00017267,2]
[378685078,1754958686971,-400.0,0.00017267,2]
[378685079,1754958686980,-428.67,0.00017267,2]
[378685080,1754958686989,-855.22,0.00017267,2]
[378685081,1754958686998,-527.94,0.00017267,2]
[378685082,1754958687007,-400.0,0.00017267,2]
[378685083,1754958687016,-400.0,0.00017267,2]
[378685084,1754958687025,-690.8,0.00017267,2]
[378685085,1754958687034,-660.29,0.00017267,2]
[378685086,1754958687043,-400.0,0.00017267,2]
[378685087,1754958687053,-661.7,0.00017267,2]
[378685088,1754958687063,-400.0,0.00017267,2]
[378685089,1754958687072,-400.0,0.00017267,2]
[378685090,1754958687082,-400.0,0.00017267,2]
[378685091,1754958687091,-553.06,0.00017267,2]
[378685092,1754958687101,-485.52,0.00017267,2]
[378685093,1754958687110,-414.15,0.00017267,2]
[378685094,1754958687119,-400.0,0.00017267,2]
[378685095,1754958687129,-689.02,0.00017267,2]
[378685096,1754958687138,-466.29,0.00017267,2]
[378685097,1754958687147,-229.09562967,0.00017268,2]
[378685098,1754958687156,-150.0,0.00017268,2]
[378685099,1754958687165,-500.0,0.00017273,2]
[378685100,1754958687174,-500.0,0.00017273,2]
[378685101,1754958687183,-608.90296398,0.00017273,2]
[378685102,1754958687193,-500.0,0.00017273,2]
[378685103,1754958687203,-324.2643365,0.00017273,2]
[378685104,1754958687213,-500.0,0.00017273,2]
[378685105,1754958687221,-500.0,0.00017273,2]
[378685106,1754958687231,-325.65521712,0.00017273,2]
[378685107,1754958687239,-501.00200817,0.00017273,2]
[378685108,1754958687249,-500.31273927,0.00017273,2]
[378685109,1754958687258,-500.0,0.00017273,2]
[378685110,1754958687267,-500.0,0.00017273,2]
[378685111,1754958687277,-500.0,0.00017273,2]
[378685112,1754958687286,-500.0,0.00017273,2]
[378685113,1754958687295,-500.0,0.00017273,2]
[378685114,1754958687304,-402.50813625,0.00017273,2]
[378685115,1754958687314,-201.26239472,0.00017273,2]
[378685116,1754958687323,-160.24718503,0.00017273,2]
[378685117,1754958687332,-500.0,0.00017273,2]
[378685118,1754958687342,-500.0,0.00017273,2]
[378685119,1754958687351,-500.22252914,0.00017273,2]
[378685120,1754958687361,-501.67477761,0.00017273,2]
[378685121,1754958687370,-500.0,0.00017273,2]
[378685122,1754958687379,-500.0,0.00017273,2]
[378685123,1754958687389,-504.18165135,0.00017273,2]
[378685124,1754958687398,-500.0,0.00017273,2]
[378685125,1754958687407,-500.0,0.00017273,2]
[378685126,1754958687416,-500.64683159,0.00017273,2]
[378685127,1754958687425,-500.0,0.00017273,2]
[378685128,1754958687434,-500.0,0.00017273,2]
[378685129,1754958687443,-554.77447377,0.00017273,2]
[378685130,1754958687454,-500.0,0.00017273,2]
[378685131,1754958687463,-500.0,0.00017273,2]
[378685132,1754958687471,-529.47159828,0.00017273,2]
[378685133,1754958687481,-501.10745392,0.00017273,2]
[378685134,1754958687490,-500.0,0.00017273,2]
[378685135,1754958687499,-500.0,0.00017273,2]
[378685136,1754958687509,-502.23039251,0.00017273,2]
[378685137,1754958687518,-500.0,0.00017273,2]
[378685138,1754958687527,-500.0,0.00017273,2]
[378685139,1754958687537,-500.0,0.00017273,2]
[378685140,1754958687546,-500.0,0.00017273,2]
[378685141,1754958687555,-500.0,0.00017273,2]
[378685142,1754958687565,-155.34916236,0.00017273,2]
[378685143,1754958687576,-500.0,0.00017273,2]
[378685144,1754958687586,-500.0,0.00017273,2]
[378685145,1754958687596,-500.0,0.00017273,2]
[378685146,1754958687606,-500.0,0.00017273,2]
[378685147,1754958687615,-1107.19,0.00017277,2]